bitfinex-derivatives/quotes_ETHF0:USTF0_20260116
["timestamp","ask_amount","ask_price","bid_price","bid_amount"]
[1768564528701,0.9308583,3304.0,3302.5,0.47398811]
[1768564528897,0.15138,3304.1,3302.5,0.47398811]
[1768564529102,0.9308583,3304.0,3302.5,0.47398811]
[1768564529309,0.93123417,3303.9,3302.5,0.47398811]
[1768564529613,0.15138,3304.1,3302.5,0.47398811]
[1768564529815,0.93125156,3304.0,3302.5,0.47398811]
[1768564530109,0.93125156,3303.9,3302.5,0.47398811]
[1768564530312,0.15138,3304.1,3302.5,0.47398811]
[1768564530506,0.93214315,3304.0,3302.5,0.47398811]
[1768564530707,0.93214315,3303.9,3302.5,0.47398811]
[1768564530913,0.93214315,3303.8,3302.5,0.47398811]
[1768564531113,0.15138,3304.1,3302.5,0.47398811]
[1768564531314,0.93214303,3304.0,3302.5,0.47398811]
[1768564531515,0.93214303,3303.9,3302.5,0.47398811]
[1768564531713,0.93214303,3303.8,3302.5,0.47398811]
[1768564531916,0.15138,3304.1,3302.5,0.47398811]
[1768564532108,0.93220869,3304.0,3302.5,0.47398811]
[1768564532307,0.93220869,3303.9,3302.5,0.47398811]
[1768564532508,0.93220869,3303.8,3302.5,0.47398811]
[1768564532709,0.15138,3304.1,3302.5,0.47398811]
[1768564532909,0.93222715,3304.0,3302.5,0.47398811]
[1768564533107,0.93222715,3303.9,3302.5,0.47398811]
[1768564533307,0.93222715,3303.8,3302.6,0.44498512]
[1768564533510,0.85613899,3304.0,3302.6,0.44498512]
[1768564533711,0.93226536,3303.9,3302.6,0.44498512]
[1768564533912,0.93226536,3303.8,3302.6,0.44498512]
[1768564534112,0.85613899,3304.0,3302.6,0.44498512]
[1768564534318,0.93226536,3303.9,3302.6,0.44498512]
[1768564534520,0.93226536,3303.8,3302.6,0.44498512]
[1768564534720,0.85613899,3304.0,3302.6,0.44498512]
[1768564535021,0.9322675,3303.9,3302.6,0.44498512]
[1768564535322,0.9322675,3303.8,3302.6,0.44498512]
[1768564535522,0.85613899,3304.0,3302.6,0.44498512]
[1768564535818,1.7884069,3303.9,3302.6,0.44498512]
[1768564536014,0.93226791,3303.8,3302.6,0.44498512]
[1768564536322,0.85613899,3303.9,3302.6,0.44498512]
[1768564536528,0.93226886,3303.8,3302.6,0.44498512]
[1768564536722,0.85613899,3303.9,3302.6,0.44498512]
[1768564536924,0.93226909,3303.8,3302.6,0.44498512]
[1768564537224,0.85613899,3303.9,3302.6,0.44498512]
[1768564537422,0.93226597,3303.8,3302.6,0.44498512]
[1768564537621,0.85613899,3303.9,3302.6,0.44498512]
[1768564537916,0.93226586,3303.8,3302.6,0.44498512]
[1768564538120,0.85613899,3303.9,3302.6,0.44498512]
[1768564538321,0.93226586,3303.8,3302.6,0.44498512]
[1768564538518,0.85613899,3303.9,3302.6,0.44498512]
[1768564538719,0.9322651,3303.8,3302.6,0.44498512]
[1768564538918,0.85613899,3303.9,3302.6,0.44498512]
[1768564539121,0.93226457,3303.8,3302.6,0.44498512]
[1768564539317,0.85613899,3303.9,3302.6,0.44498512]
[1768564539518,0.93226387,3303.8,3302.6,0.44498512]
[1768564539820,0.85613899,3303.9,3302.6,0.44498512]
[1768564540011,0.93226387,3303.8,3302.6,0.44498512]
[1768564540215,0.85613899,3303.9,3302.6,0.44498512]
[1768564540424,0.93226379,3303.8,3302.6,0.44498512]
[1768564540620,0.15138,3304.1,3302.6,0.44498512]
[1768564540925,1.78840255,3304.0,3302.6,0.44498512]
[1768564541223,0.93226356,3303.9,3302.6,0.44498512]
[1768564541525,0.93226356,3303.8,3302.6,0.44498512]
[1768564541715,0.85613899,3304.0,3302.6,0.44498512]
[1768564541915,0.93226334,3303.9,3302.6,0.44498512]
[1768564542116,0.93226334,3303.8,3302.6,0.44498512]
[1768564542318,0.85613899,3304.0,3302.6,0.44498512]
[1768564542517,0.93226251,3303.9,3302.6,0.44498512]
[1768564542831,0.93226251,3303.8,3302.6,1.30112411]
[1768564543017,0.85613899,3304.0,3302.6,1.30112411]
[1768564543218,0.93226286,3303.9,3302.6,1.30112411]
[1768564543526,0.93226286,3303.8,3302.6,1.30112411]
[1768564543825,0.85613899,3304.0,3302.6,1.30112411]
[1768564544038,0.93225868,3303.9,3302.6,1.30112411]
[1768564544224,0.93225868,3303.8,3302.6,1.30112411]
[1768564544534,0.85613899,3304.0,3302.6,1.30112411]
[1768564544715,0.93225953,3303.9,3302.6,0.44498512]
[1768564544921,0.85613899,3303.5,3302.5,0.00307046]
[1768564547624,0.85613899,3303.3,3302.5,0.00307046]
[1768564547821,0.85613899,3303.3,3301.3,5.44353789]
[1768564547822,0.85613899,3303.0,3301.8,0.44498512]
[1768564548121,0.85613899,3302.7,3301.2,0.006058]
[1768564548324,0.85613899,3302.5,3301.2,0.006058]
[1768564548626,0.85613899,3302.5,3301.2,0.45104312]
[1768564548926,0.85880448,3302.5,3301.2,0.45488982]
[1768564549526,0.00266549,3302.5,3301.7,0.85613899]
[1768564550928,0.00266549,3302.5,3301.5,0.44498512]
[1768564551120,0.00266549,3302.5,3301.2,0.0099047]
[1768564552331,0.85613899,3302.3,3301.2,0.0099047]
[1768564552622,0.48870826,3302.4,3301.2,0.0099047]
[1768564554025,0.15411549,3302.5,3301.3,0.85613899]
[1768564555738,0.15411549,3302.5,3301.2,0.0099047]
[1768564556039,0.15411549,3302.5,3301.4,0.85613899]
[1768564556227,0.00266549,3302.5,3301.4,1.29950645]
[1768564556542,0.00266549,3302.5,3301.7,0.85613899]
[1768564557229,0.48870826,3303.6,3302.1,0.85613899]
[1768564557532,1.78267524,3303.5,3302.1,0.85613899]
[1768564557733,0.92653625,3303.4,3302.1,0.85613899]
[1768564558137,0.92653625,3303.4,3301.8,1.29950645]
[1768564558335,0.93003956,3303.4,3301.8,1.29950645]
[1768564558531,0.92653625,3303.3,3301.8,1.29950645]
[1768564558833,0.00350331,3303.4,3301.8,1.29950645]
[1768564559129,0.92652846,3303.3,3301.8,1.29950645]
[1768564559331,0.00350331,3303.4,3301.8,1.29950645]
[1768564559529,0.92652991,3303.3,3301.9,0.44336746]
[1768564559729,0.00350331,3303.4,3301.9,0.44336746]
[1768564559934,0.92652979,3303.3,3301.9,0.44336746]
[1768564560235,0.00350331,3303.4,3301.9,0.44336746]
[1768564560439,0.92654934,3303.3,3301.9,0.44336746]
[1768564560632,0.00350331,3303.4,3301.9,0.44336746]
[1768564560836,0.00350331,3303.4,3302.1,1.29950645]
[1768564561032,0.00350331,3303.4,3302.5,0.44336746]
[1768564565036,0.85613899,3303.1,3301.9,0.44336746]
[1768564566237,0.8596423,3303.4,3301.9,0.44336746]
[1768564566636,0.8596423,3303.4,3302.1,1.29950645]
[1768564567844,0.8596423,3303.4,3302.2,0.44336746]
[1768564568035,0.00350331,3303.4,3302.2,0.44336746]
[1768564569347,0.00350331,3303.4,3302.5,0.44336746]
[1768564574342,0.15137,3304.2,3303.1,0.44336746]
[1768564574548,0.9283369,3304.1,3303.3,0.85613899]
[1768564574734,1.00748899,3304.6,3303.1,0.44336746]
[1768564574935,0.92831365,3304.5,3303.1,0.44336746]
[1768564575136,0.92831365,3304.4,3303.1,0.44336746]
[1768564575349,0.92831365,3304.3,3303.1,0.44336746]
[1768564575650,0.92831365,3304.2,3303.1,0.44336746]
[1768564575851,0.00333107,3304.4,3303.1,0.44336746]
[1768564576148,0.92824496,3304.3,3303.1,0.44336746]
[1768564576351,0.00333107,3304.4,3303.3,0.44336746]
[1768564576552,0.92811573,3304.3,3303.3,0.44336746]
[1768564576849,0.00333107,3304.4,3303.3,0.44336746]
[1768564577050,0.928115,3304.3,3303.3,0.44336746]
[1768564577238,0.00333107,3304.4,3303.3,0.44336746]
[1768564577441,0.00333107,3304.4,3303.4,0.44336746]
[1768564578245,0.00333107,3304.4,3303.5,1.29950645]
[1768564578449,0.64002826,3305.4,3303.8,1.29950645]
[1768564578651,0.85613899,3305.2,3303.8,1.29950645]
[1768564578849,0.92738519,3305.1,3303.8,1.29950645]
[1768564579051,0.92738519,3305.0,3303.8,1.29950645]
[1768564579352,0.85613899,3304.9,3303.8,0.44336746]
[1768564579549,0.85904775,3304.9,3303.8,0.44600634]
[1768564580249,0.85904775,3304.9,3303.8,1.30214533]
[1768564580250,0.00290876,3304.9,3303.8,1.30214533]
[1768564580455,0.00290876,3304.9,3303.9,0.44336746]
[1768564586756,0.00290876,3304.9,3303.8,0.00263888]
[1768564586962,0.85613899,3304.8,3303.8,0.00263888]
[1768564593369,0.00290876,3304.9,3303.8,0.00263888]
[1768564598173,0.92610945,3304.8,3303.8,0.00263888]
[1768564598471,0.00290876,3304.9,3303.8,0.00263888]
[1768564598660,0.92610956,3304.8,3303.8,0.00263888]
[1768564598861,0.00290876,3304.9,3303.8,0.00263888]
[1768564600171,0.92673576,3304.8,3303.8,0.00263888]
[1768564600370,0.00290876,3304.9,3303.8,0.00263888]
[1768564600673,0.92673576,3304.8,3303.8,0.00263888]
[1768564600865,0.00290876,3304.9,3303.8,0.00263888]
[1768564601066,0.92673576,3304.8,3303.8,0.00263888]
[1768564601373,0.00290876,3304.9,3303.8,0.00263888]
[1768564601574,0.92704013,3304.8,3303.8,0.00263888]
[1768564601765,0.00290876,3304.9,3303.8,0.00263888]
[1768564601965,0.92704013,3304.8,3303.8,0.00263888]
[1768564602165,0.00290876,3304.9,3303.8,0.00263888]
[1768564602371,0.92741202,3304.8,3303.8,0.00263888]
[1768564602570,0.92741202,3304.7,3303.8,0.00263888]
[1768564602770,0.00290876,3304.9,3303.8,0.00263888]
[1768564603069,0.92741202,3304.8,3303.8,0.00263888]
[1768564603373,0.92787976,3304.7,3303.8,0.00263888]
[1768564603567,0.00290876,3304.9,3303.8,0.00263888]
[1768564603771,0.92787976,3304.8,3303.8,0.00263888]
[1768564603969,0.92787976,3304.7,3303.8,0.00263888]
[1768564604160,0.92850938,3304.6,3303.8,0.00263888]
[1768564604364,0.00290876,3304.9,3303.8,0.00263888]
[1768564604566,0.92850938,3304.8,3303.8,0.00263888]
[1768564604761,0.92850938,3304.7,3303.8,0.00263888]
[1768564604975,0.92850938,3304.6,3303.8,0.00263888]
[1768564605174,0.00290876,3304.9,3303.8,0.00263888]
[1768564605379,0.92891324,3304.8,3303.8,0.00263888]
[1768564605570,0.92891324,3304.7,3303.8,0.00263888]
[1768564605772,0.92891324,3304.6,3303.8,0.00263888]
[1768564605974,0.00290876,3304.9,3303.8,0.00263888]
[1768564606167,0.9289134,3304.8,3303.8,0.00263888]
[1768564606371,0.9289134,3304.7,3303.8,0.00263888]
[1768564606578,0.9289134,3304.6,3303.8,0.00263888]
[1768564606773,0.9289134,3304.5,3303.8,0.00263888]
[1768564606973,0.00290876,3304.9,3303.8,0.00263888]
[1768564607172,0.92942137,3304.8,3303.8,0.00263888]
[1768564607381,0.92942137,3304.7,3303.8,0.00263888]
[1768564607574,0.92942137,3304.6,3303.8,0.00263888]
[1768564607775,0.92942137,3304.5,3303.8,0.00263888]
[1768564607983,0.00290876,3304.9,3303.8,0.00263888]
[1768564608181,0.93001425,3304.8,3303.8,0.00263888]
[1768564608382,0.93001425,3304.7,3303.8,0.00263888]
[1768564608682,0.93016477,3304.6,3303.8,0.00263888]
[1768564608882,0.93016477,3304.5,3303.8,0.00263888]
[1768564609079,0.93016477,3304.4,3303.8,0.00263888]
[1768564609274,0.00290876,3304.9,3303.8,0.00263888]
[1768564609474,0.93020703,3304.8,3303.8,0.00263888]
[1768564609675,0.93020703,3304.7,3303.8,0.00263888]
[1768564609881,0.93020703,3304.6,3303.8,0.00263888]
[1768564610082,0.93020703,3304.5,3303.8,0.00263888]
[1768564610281,0.00290876,3304.9,3303.8,0.00263888]
[1768564610282,0.93020703,3304.4,3303.8,0.00263888]
[1768564610483,0.00290876,3304.9,3303.8,0.00263888]
[1768564610691,0.93026586,3304.8,3303.8,0.00263888]
[1768564610879,0.93026586,3304.7,3303.8,0.00263888]
[1768564611076,0.93026586,3304.6,3303.8,0.00263888]
[1768564611279,0.93026586,3304.5,3303.8,0.00263888]
[1768564611476,0.93026586,3304.4,3303.8,0.00263888]
[1768564611776,0.00290876,3304.9,3303.8,0.00263888]
[1768564611976,0.93027949,3304.8,3303.8,0.00263888]
[1768564612187,0.93027949,3304.7,3303.8,0.00263888]
[1768564612379,0.93027949,3304.6,3303.8,0.00263888]
[1768564612580,0.93027949,3304.5,3303.8,0.00263888]
[1768564612780,0.00290876,3304.9,3303.8,0.00263888]
[1768564613077,0.93029391,3304.8,3303.8,0.00263888]
[1768564613278,0.93029391,3304.7,3303.8,0.00263888]
[1768564613481,0.93029391,3304.6,3303.8,0.00263888]
[1768564613681,0.93029391,3304.5,3303.8,0.00263888]
[1768564613990,0.00290876,3304.9,3303.8,0.00263888]
[1768564614286,0.93031139,3304.8,3303.8,0.00263888]
[1768564614476,0.93031139,3304.7,3303.8,0.00263888]
[1768564614671,0.93031139,3304.6,3303.8,0.00263888]
[1768564614877,0.93031139,3304.5,3303.1,0.64848512]
[1768564615076,0.93031139,3304.4,3303.2,0.49706512]
[1768564615276,0.00290876,3304.9,3303.2,0.49706512]
[1768564615484,0.93036384,3304.8,3303.2,0.49706512]
[1768564615682,0.93036384,3304.7,3303.2,0.49706512]
[1768564615880,0.93036384,3304.7,3303.2,0.50062286]
[1768564621996,1.5401704,3304.7,3303.2,0.50062286]
[1768564622185,0.00290876,3304.9,3303.2,0.50062286]
[1768564622186,0.45845656,3304.5,3303.2,0.00355774]
[1768564622386,0.60982656,3304.2,3303.2,0.00355774]
[1768564622587,0.93036384,3304.1,3303.2,0.00355774]
[1768564622892,0.93036384,3304.0,3303.2,0.00355774]
[1768564623193,0.60982656,3304.2,3303.2,0.00355774]
[1768564623491,1.38676347,3304.1,3303.2,0.00355774]
[1768564623695,0.92830691,3304.0,3303.2,0.00355774]
[1768564625292,0.45845656,3304.1,3302.4,0.49706512]
[1768564625497,0.92779371,3304.0,3302.4,0.49706512]
[1768564625684,0.45845656,3304.1,3302.4,0.49706512]
[1768564625885,0.45845656,3303.7,3302.0,0.49706512]
[1768564626084,0.92780132,3303.6,3302.0,0.49706512]
[1768564626286,0.92780132,3303.6,3302.0,0.49969005]
[1768564630292,0.45845656,3303.7,3302.0,0.49969005]
[1768564642199,0.15139,3303.8,3302.0,0.49969005]
[1768564644301,0.92508176,3303.7,3302.0,0.49969005]
[1768564644491,0.15139,3303.8,3302.0,0.49969005]
[1768564644691,0.92508176,3303.7,3302.0,0.49969005]
[1768564644893,0.15139,3303.8,3302.0,0.49969005]
[1768564645193,0.92508176,3303.7,3302.0,0.49969005]
[1768564645488,0.15139,3303.8,3302.0,0.49969005]
[1768564645692,0.92525858,3303.7,3302.0,0.49969005]
[1768564645892,0.15139,3303.8,3302.0,0.49969005]
[1768564646093,0.92459671,3303.7,3302.0,0.49969005]
[1768564646293,0.15139,3303.8,3302.0,0.49969005]
[1768564646495,0.92481424,3303.7,3302.0,0.49969005]
[1768564646695,0.15139,3303.8,3302.0,0.49969005]
[1768564646897,0.92481424,3303.7,3302.0,0.49969005]
[1768564647096,0.15139,3303.8,3302.0,0.49969005]
[1768564647296,0.92507593,3303.7,3302.0,0.49969005]
[1768564647499,0.15139,3303.8,3302.0,0.49969005]
[1768564647795,0.92507593,3303.7,3302.0,0.49969005]
[1768564647997,0.15139,3303.8,3302.0,0.49969005]
[1768564648299,0.92507593,3303.7,3302.0,0.49969005]
[1768564648490,0.92507593,3303.6,3302.0,0.49969005]
[1768564648690,0.15139,3303.8,3302.0,0.49969005]
[1768564648898,0.92539081,3303.7,3302.0,0.49969005]
[1768564649092,0.92539081,3303.6,3302.0,0.49969005]
[1768564649302,0.15139,3303.8,3302.0,0.49969005]
[1768564649500,0.92577487,3303.7,3302.0,0.49969005]
[1768564649706,0.92577487,3303.6,3302.0,0.49969005]
[1768564649901,0.15139,3303.8,3302.0,0.49969005]
[1768564650204,0.92577487,3303.7,3302.0,0.49969005]
[1768564650402,0.92577487,3303.6,3302.0,0.49969005]
[1768564650600,0.15139,3303.8,3302.0,0.49969005]
[1768564650806,0.92625834,3303.7,3302.0,0.49969005]
[1768564651006,0.92625834,3303.6,3302.0,0.49969005]
[1768564651206,0.92691003,3303.5,3302.0,0.49969005]
[1768564651403,0.15139,3303.8,3302.0,0.49969005]
[1768564651603,0.92691002,3303.7,3302.0,0.49969005]
[1768564651804,0.92691002,3303.6,3302.0,0.49969005]
[1768564652006,0.92691002,3303.5,3302.0,0.49969005]
[1768564652207,0.92728776,3303.4,3302.0,0.49969005]
[1768564652509,0.15139,3303.8,3302.0,0.49969005]
[1768564652709,0.92728776,3303.7,3302.0,0.49969005]
[1768564653010,0.92728776,3303.6,3302.0,0.49969005]
[1768564653210,0.92728776,3303.5,3302.0,0.49969005]
[1768564653402,0.92728776,3303.4,3302.0,0.49969005]
[1768564653603,0.15139,3303.8,3302.0,0.49969005]
[1768564653908,0.92756022,3303.7,3302.0,0.49969005]
[1768564654112,0.92756022,3303.6,3302.0,0.49969005]
[1768564654302,0.92756022,3303.5,3302.0,0.49969005]
[1768564654503,0.92756022,3303.4,3302.0,0.49969005]
[1768564654702,0.15139,3303.8,3302.0,0.49969005]
[1768564654910,0.92787967,3303.7,3302.0,0.49969005]
[1768564655212,0.92787967,3303.6,3302.0,0.49969005]
[1768564655514,0.92787967,3303.5,3302.2,0.47865217]
[1768564659116,0.92787967,3303.5,3302.3,0.85633905]
[1768564659414,0.92787967,3303.5,3302.3,0.47865217]
[1768564669323,0.92787967,3303.5,3302.3,0.47865217]
[1768564675326,0.92787967,3303.4,3302.4,1.35703023]
[1768564675527,0.15139,3303.8,3302.4,1.35703023]
[1768564675728,0.92864316,3303.7,3302.4,1.35703023]
[1768564675918,0.92864316,3303.6,3302.4,1.35703023]
[1768564676118,0.92864316,3303.5,3302.4,1.35703023]
[1768564676320,0.92864316,3303.4,3302.4,1.35703023]
[1768564676523,0.15139,3303.8,3302.4,1.35703023]
[1768564676725,0.9277568,3303.7,3302.4,1.35703023]
[1768564676925,0.9277568,3303.6,3302.4,1.35703023]
[1768564677124,0.9277568,3303.5,3302.4,1.35703023]
[1768564677426,0.9277568,3303.4,3302.4,1.35703023]
[1768564677631,0.15139,3303.8,3302.4,1.35703023]
[1768564677925,0.92772664,3303.7,3302.4,1.35703023]
[1768564678121,0.92772664,3303.6,3302.5,0.50069118]
[1768564678327,0.92772664,3303.5,3302.5,0.50069118]
[1768564678527,0.92772664,3303.4,3302.5,0.50069118]
[1768564678728,0.15139,3303.8,3302.5,0.50069118]
[1768564678927,0.92770106,3303.7,3302.5,0.50069118]
[1768564679145,0.92770106,3303.6,3302.5,0.50069118]
[1768564679333,0.92770106,3303.5,3302.5,0.50069118]
[1768564679533,0.15139,3303.8,3302.5,0.50069118]
[1768564679733,0.92768181,3303.7,3302.5,0.50069118]
[1768564679938,0.92768181,3303.6,3302.5,0.50069118]
[1768564680140,0.92768181,3303.5,3302.5,0.50069118]
[1768564680342,0.15139,3303.8,3302.5,0.50069118]
[1768564680542,0.92766583,3303.7,3302.5,0.50069118]
[1768564680840,0.92766583,3303.6,3302.5,0.50069118]
[1768564681037,0.92766583,3303.5,3302.5,0.50069118]
[1768564681239,0.15139,3303.8,3302.5,0.50069118]
[1768564681439,0.9276545,3303.7,3302.5,0.50069118]
[1768564681641,0.9276545,3303.6,3302.5,0.50069118]
[1768564681841,0.9276545,3303.5,3302.5,0.50069118]
[1768564682046,0.15139,3303.8,3302.5,0.50069118]
[1768564682245,0.9276545,3303.7,3302.5,0.50069118]
[1768564682545,0.9276545,3303.6,3302.5,0.50069118]
[1768564682748,0.9276545,3303.5,3302.5,0.50069118]
[1768564683043,0.15139,3303.8,3302.5,1.35703023]
[1768564683254,0.92764854,3303.7,3302.5,1.35703023]
[1768564683453,0.92764854,3303.6,3302.5,1.35703023]
[1768564683634,0.92764854,3303.5,3302.5,1.35703023]
[1768564683839,0.15139,3303.8,3302.5,1.35703023]
[1768564684042,0.92764894,3303.7,3302.5,1.35703023]
[1768564684350,0.92764894,3303.6,3302.5,1.35703023]
[1768564684541,0.92764894,3303.5,3302.5,1.35703023]
[1768564684737,0.15139,3303.8,3302.5,1.35703023]
[1768564684942,0.92763726,3303.7,3302.5,1.35703023]
[1768564685142,0.92763726,3303.6,3302.5,1.35703023]
[1768564685342,0.92763726,3303.5,3302.5,1.35703023]
[1768564685640,0.92763726,3303.4,3302.5,1.35703023]
[1768564685840,0.15139,3303.8,3302.5,1.35703023]
[1768564686040,0.92763149,3303.7,3302.5,1.35703023]
[1768564686339,0.92763149,3303.6,3302.5,1.35703023]
[1768564686541,0.92763149,3303.5,3302.5,1.35703023]
[1768564686741,0.92763149,3303.4,3302.5,1.35703023]
[1768564686937,0.15139,3303.8,3302.5,0.50069118]
[1768564687243,0.92762347,3303.7,3302.5,0.50069118]
[1768564687441,0.92762347,3303.6,3302.5,0.50069118]
[1768564687642,0.92762347,3303.5,3302.5,0.50069118]
[1768564687844,0.15139,3303.8,3302.5,0.50069118]
[1768564687845,0.92762347,3303.4,3302.5,0.50069118]
[1768564688043,0.15139,3303.8,3302.5,0.50069118]
[1768564688245,0.92761683,3303.7,3302.5,0.50069118]
[1768564688544,0.92761683,3303.6,3302.5,0.50069118]
[1768564688743,0.92761683,3303.5,3302.5,0.50069118]
[1768564688953,0.92761683,3303.4,3302.5,0.50069118]
[1768564689143,0.15139,3303.8,3302.5,0.50069118]
[1768564689453,0.92760665,3303.7,3302.5,0.50069118]
[1768564689652,0.92760665,3303.6,3302.5,0.50069118]
[1768564689854,0.92760665,3303.5,3302.5,0.50069118]
[1768564690047,0.92760665,3303.4,3302.5,0.50069118]
[1768564690250,0.15139,3303.8,3302.5,0.50069118]
[1768564690453,0.92760695,3303.7,3302.5,0.50069118]
[1768564690749,0.92760695,3303.6,3302.5,0.50069118]
[1768564690951,0.92760695,3303.5,3302.5,0.50069118]
[1768564691154,0.92760695,3303.4,3302.5,0.50069118]
[1768564691350,0.15139,3303.8,3302.5,0.50069118]
[1768564691549,0.92760826,3303.7,3302.5,0.50069118]
[1768564691753,0.92760826,3303.6,3302.5,0.50069118]
[1768564691946,0.92760826,3303.5,3302.5,0.50069118]
[1768564692145,0.92760826,3303.4,3302.5,0.50069118]
[1768564692354,0.15139,3303.8,3302.5,0.50069118]
[1768564692554,0.9276112,3303.7,3302.5,0.50069118]
[1768564692757,0.9276112,3303.6,3302.5,0.50069118]
[1768564692956,0.9276112,3303.5,3302.5,0.50069118]
[1768564693158,0.9276112,3303.4,3302.5,0.50069118]
[1768564693456,0.15139,3303.8,3302.5,0.50069118]
[1768564693656,0.92761567,3303.7,3302.5,0.50069118]
[1768564693857,0.92761567,3303.6,3302.5,0.50069118]
[1768564694062,0.92761567,3303.5,3302.5,0.50069118]
[1768564694258,0.92761567,3303.4,3302.5,0.50069118]
[1768564694559,0.15139,3303.8,3302.5,0.50069118]
[1768564694757,0.92762174,3303.7,3302.5,0.50069118]
[1768564695057,0.92762174,3303.6,3302.5,0.50069118]
[1768564695361,0.92762174,3303.5,3302.5,0.50069118]
[1768564695559,0.15139,3303.8,3302.5,0.50069118]
[1768564695560,0.92762174,3303.4,3302.5,0.50069118]
[1768564695763,0.15139,3303.8,3302.5,0.50069118]
[1768564695957,0.92762935,3303.7,3302.5,0.50069118]
[1768564696155,0.92762935,3303.6,3302.5,0.50069118]
[1768564696357,0.92762935,3303.5,3302.5,0.50069118]
[1768564696556,0.92762935,3303.4,3302.5,0.50069118]
[1768564696757,0.15139,3303.8,3302.5,0.50069118]
[1768564696951,0.45205248,3303.0,3302.0,0.00262493]
[1768564697148,0.85633905,3302.8,3302.0,0.00262493]
[1768564697364,1.30839153,3303.0,3302.0,0.00262493]
[1768564698965,0.45205248,3302.9,3302.0,0.00262493]
[1768564702866,0.15142,3303.1,3302.0,0.00262493]
[1768564712079,0.5006206,3303.3,3302.2,0.85633905]
[1768564712674,0.1514,3303.6,3302.8,0.85633905]
[1768564713077,0.1514,3303.6,3302.5,0.85633905]
[1768564713468,0.6276295,3303.6,3302.0,0.00262493]
[1768564713673,1.687,3304.1,3302.0,0.00262493]
[1768564713674,0.4762295,3303.2,3302.0,0.00262493]
[1768564714569,0.4762295,3303.2,3302.0,0.85896398]
[1768564715278,0.4762295,3303.2,3302.0,0.00262493]
[1768564725980,0.4762295,3303.6,3302.0,0.85897988]
[1768564726185,0.92708201,3303.5,3302.0,0.85897988]
[1768564726392,0.4762295,3303.6,3302.0,0.85897988]
[1768564726593,0.92710365,3303.5,3302.0,0.85897988]
[1768564726792,0.4762295,3303.6,3302.0,0.85897988]
[1768564733708,0.4762295,3303.6,3302.0,1.38299617]
[1768564733904,0.4762295,3303.6,3302.1,0.52401629]
[1768564738219,0.92530085,3303.5,3302.1,0.52401629]
[1768564738413,0.4762295,3303.6,3302.1,0.52401629]
[1768564738613,0.92530085,3303.5,3302.1,0.52401629]
[1768564738914,0.4762295,3303.6,3302.1,0.52401629]
[1768564740317,0.92551331,3303.5,3302.1,0.52401629]
[1768564740515,0.4762295,3303.6,3302.1,0.52401629]
[1768564740814,0.92551947,3303.5,3302.1,0.52401629]
[1768564741012,0.4762295,3303.6,3302.1,0.52401629]
[1768564741213,0.92551947,3303.5,3302.1,0.52401629]
[1768564741414,0.4762295,3303.6,3302.1,0.52401629]
[1768564741717,0.9256732,3303.5,3302.1,0.52401629]
[1768564741917,0.15138,3303.9,3302.1,0.52401629]
[1768564742119,0.92566475,3303.8,3302.3,1.38037124]
[1768564742311,0.92566475,3303.7,3302.3,1.38037124]
[1768564742511,0.51712245,3303.8,3302.3,1.38037124]
[1768564742711,0.92569629,3303.7,3302.3,1.38037124]
[1768564742907,0.51712245,3303.8,3302.3,1.38037124]
[1768564743212,0.92569629,3303.7,3302.3,1.38037124]
[1768564743419,0.51712245,3303.8,3302.3,1.38037124]
[1768564743718,0.92564755,3303.7,3302.3,1.38037124]
[1768564744018,0.51712245,3303.8,3302.3,1.38037124]
[1768564744317,0.92564755,3303.7,3302.3,1.38037124]
[1768564744518,0.51712245,3303.8,3302.3,1.38037124]
[1768564744717,0.92562605,3303.7,3302.3,1.38037124]
[1768564744916,0.51712245,3303.8,3302.3,1.38037124]
[1768564745120,0.92562605,3303.7,3302.3,1.38037124]
[1768564745420,0.51712245,3303.8,3302.3,1.38037124]
[1768564745619,0.9256089,3303.7,3302.3,1.38037124]
[1768564745813,0.51712245,3303.8,3302.3,1.38037124]
[1768564746016,1.44273158,3303.7,3302.3,1.38037124]
[1768564746211,0.51712245,3303.7,3302.0,0.15409493]
[1768564751723,0.51712245,3303.7,3302.0,0.67811122]
[1768564754225,0.92606732,3303.6,3302.0,0.67811122]
[1768564754413,0.51712245,3303.7,3302.0,0.67811122]
[1768564754721,0.92606671,3303.6,3302.0,0.67811122]
[1768564754923,0.51712245,3303.7,3302.0,0.67811122]
[1768564755118,0.92606671,3303.6,3302.0,0.67811122]
[1768564755319,0.51712245,3303.7,3302.0,0.67811122]
[1768564755521,0.92619459,3303.6,3302.0,0.67811122]
[1768564755719,0.51712245,3303.7,3302.0,0.67811122]
[1768564755926,0.92619459,3303.6,3302.0,0.67811122]
[1768564756128,0.51712245,3303.7,3302.0,0.67811122]
[1768564756327,0.92619867,3303.6,3302.0,0.67811122]
[1768564756516,0.51712245,3303.7,3302.0,0.67811122]
[1768564756815,0.92619867,3303.6,3302.0,0.67811122]
[1768564757014,0.51712245,3303.7,3302.0,0.67811122]
[1768564757216,0.92619867,3303.6,3302.0,0.67811122]
[1768564757526,0.51712245,3303.7,3302.0,0.67811122]
[1768564757821,0.92620078,3303.6,3302.0,0.67811122]
[1768564758022,0.51712245,3303.7,3302.0,0.67811122]
[1768564758223,0.92620078,3303.6,3302.0,0.67811122]
[1768564758416,0.51712245,3303.7,3302.0,0.67811122]
[1768564758616,0.92620583,3303.6,3302.0,0.67811122]
[1768564758818,0.51712245,3303.7,3302.0,0.67811122]
[1768564759019,0.92620552,3303.6,3302.0,0.67811122]
[1768564759220,0.51712245,3303.7,3302.0,0.67811122]
[1768564759431,0.92621312,3303.6,3302.0,0.67811122]
[1768564759726,0.51712245,3303.7,3302.0,0.67811122]
[1768564759925,0.92621323,3303.6,3302.0,0.67811122]
[1768564760126,0.51712245,3303.7,3302.0,0.67811122]
[1768564760328,0.92621919,3303.6,3302.0,0.67811122]
[1768564760518,0.51712245,3303.7,3302.0,0.67811122]
[1768564760719,0.92622356,3303.6,3302.0,0.67811122]
[1768564760923,0.51712245,3303.7,3302.0,0.67811122]
[1768564761122,0.92622356,3303.6,3302.0,0.67811122]
[1768564761425,0.51712245,3303.7,3302.0,0.67811122]
[1768564761426,0.51712245,3303.7,3302.1,0.54917691]
[1768564761642,0.92623767,3303.6,3302.1,0.54917691]
[1768564761830,0.51712245,3303.7,3302.1,0.54917691]
[1768564762030,0.92623778,3303.6,3302.1,0.54917691]
[1768564762229,0.51712245,3303.7,3302.1,0.54917691]
[1768564762432,0.92625576,3303.6,3302.1,0.54917691]
[1768564762619,0.51712245,3303.7,3302.1,0.54917691]
[1768564762820,0.92625576,3303.6,3302.1,0.54917691]
[1768564763118,0.51712245,3303.7,3302.1,0.54917691]
[1768564763317,0.9262778,3303.6,3302.1,0.54917691]
[1768564763518,0.51712245,3303.7,3302.1,0.54917691]
[1768564763733,0.9262778,3303.6,3302.1,0.54917691]
[1768564763930,0.51712245,3303.7,3302.1,0.54917691]
[1768564764133,0.9262778,3303.6,3302.1,0.54917691]
[1768564764427,0.51712245,3303.7,3302.1,0.54917691]
[1768564764616,0.92630298,3303.6,3302.1,0.54917691]
[1768564764817,0.51712245,3303.7,3302.1,0.54917691]
[1768564765018,0.92630298,3303.6,3302.1,0.54917691]